Cogmind - Beta 16.1 @@@ ROGUE MODE // 2026.04.18 @ 18:30:37 Player: mephiles96 Result: Destroyed by Y-45 Defender with Heavy Assault Rifle Performance ------------- Evolutions (2) 1000 Regions Visited (5) 1000 Robots Destroyed (41) 205 Value Destroyed (1164) 1164 Prototype IDs (26) 520 Alien Tech Used (0) 0 Bonus (300) 300 TOTAL SCORE: 4189 Bonus ------- Aligned with FarCom 300 Cogmind --------- Core Integrity 0/550 Matter 272/300 Energy 100/100 System Corruption 8% Temperature Cool (9) Movement Core (400) Ox7 Location -8/Materials Parts ------- > --- POWER (1) -------- (None) > --- PROPULSION (3) --- (None) > --- UTILITY (5) ------ Large Storage Unit > --- WEAPON (2) ------- Heavy Flail > --- INVENTORY (15) --- Light Nuclear Core Aluminum Leg Compact Wheel Faulty Improved Flight Unit Improved Flight Unit Improved Flight Unit Improved Flight Unit Improved VTOL Module Small Storage Unit Improved Terrain Scanner Targeting Computer Cloak of Protection Improved Light Armor Plating Light Assault Rifle Mining Laser Peak State ------------ > --- POWER ------------ Light Nuclear Core > --- PROPULSION ------- Aluminum Leg Carbon-fiber Leg Carbon-fiber Leg > --- UTILITY ---------- Improved Heat Sink Large Storage Unit Structural Scanner Experimental Sensor Array Propulsion Shielding > --- WEAPON ----------- Missile Launcher Heavy Flail > --- INVENTORY -------- Light Nuclear Core Aluminum Leg Compact Wheel Small Storage Unit Improved Terrain Scanner Targeting Computer Cloak of Protection Improved Light Armor Plating Light Assault Rifle Light Assault Rifle Mining Laser [Rating: 33] Favorites ----------- Power Ion Engine Engine Ion Engine Power Core Light Nuclear Core Propulsion Light Treads Treads Light Treads Leg Aluminum Leg Wheel Wheel Utility Large Storage Unit Device Seismic Detector Storage Large Storage Unit Hackware Hacking Suite Protection Propulsion Shielding Weapon Light Assault Rifle Energy Gun EM Pulse Gun Ballistic Gun Light Assault Rifle Launcher Missile Launcher Impact Weapon Heavy Flail Build | -11 -10 -10 -10 -9 -8 ------- Run | Yrd Mat Min Exi Min Mat Slots Evolved 4 | . . . . . 4 Power . | . . . . . . Propulsion 1 | . . . . . 1 Utility 3 | . . . . . 3 Weapon . | . . . . . . Parts Attached 34 | 7 10 1 . . 16 Power 5 | 1 2 . . . 2 Engine 4 | 1 2 . . . 1 Core 1 | . . . . . 1 Reactor . | . . . . . . Propulsion 13 | 2 5 . . . 6 Treads 5 | 2 1 . . . 2 Leg 6 | . 3 . . . 3 Wheel 2 | . 1 . . . 1 Hover . | . . . . . . Flight . | . . . . . . Utility 9 | 2 1 . . . 6 Device 4 | 1 . . . . 3 Storage 2 | 1 1 . . . . Processor . | . . . . . . Hackware 1 | . . . . . 1 Protection 2 | . . . . . 2 Artifact . | . . . . . . Weapon 7 | 2 2 1 . . 2 Energy Gun 1 | . 1 . . . . Energy Cannon . | . . . . . . Ballistic Gun 4 | 2 1 1 . . . Ballistic Cannon . | . . . . . . Launcher 1 | . . . . . 1 Special Weapon . | . . . . . . Impact Weapon 1 | . . . . . 1 Slashing Weapon . | . . . . . . Piercing Weapon . | . . . . . . Special Melee Weapon . | . . . . . . Unidentified Prototypes 1 | . . . . . 1 Parts Lost 22 | . 3 . . . 19 Power 4 | . 1 . . . 3 Propulsion 7 | . 1 . . . 6 Utility 7 | . . . . . 7 Weapon 4 | . 1 . . . 3 Highest Loss Streak 11 | . 3 . . . 11 To Critical Strikes 1 | . . . . . 1 Average Backups 11 | 4 11 14 15 15 12 Power 1 | . 1 1 2 1 1 Propulsion 2 | 2 3 3 2 2 2 Utility 5 | . 4 8 8 9 6 Weapon 2 | 1 2 2 2 2 2 Tool/Special . | . . . . . . Unused Backups 11 | . . . . 1 10 Power 2 | . . . . 1 1 Propulsion 3 | . . . . . 3 Utility 4 | . . . . . 4 Weapon 2 | . . . . . 2 Tool/Special . | . . . . . . Average Slot Usage (%) 88 | . 93 100 100 100 66 Engine 10 | . 13 14 14 14 1 Treads 15 | . 19 14 14 14 7 Leg 4 | . 3 . . . 11 Wheel 6 | . 5 14 14 14 2 Device 13 | . 14 14 14 14 13 Storage 12 | . 14 14 14 14 9 Ballistic Gun 20 | . 22 28 28 28 7 Peak Build Rating 33 | 7 8 9 10 10 33 Average Rating 9 | 5 7 9 9 9 15 On Entrance 7 | . 7 8 9 10 10 Avg Prop Armor Cover (%) 12 | . 12 13 13 13 9 Naked Turns . | . . . . . . Heaviest Build 38 | 12 27 28 28 28 38 Greatest Support 40 | 40 40 10 10 10 40 Greatest Overweight (x) 7 | . 2 2 2 2 7 Average Overweight (x) 1 | . . 2 2 2 . Largest Inventory Capacity 15 | 8 15 15 15 15 15 Average Capacity 14 | 7 14 15 15 15 15 Most Carried 15 | 7 15 15 15 15 15 Average Carried 11 | 4 11 14 14 14 12 Final Capacity 15 | 8 15 15 15 15 15 Final Carried 15 | 7 15 15 15 15 15 Class Distribution -------------------- 87% | Mutant 9% | Scavenger-Mutant Dominant Class ---------------- Mutant | -10/Materials Mutant | -10/Mines Mutant | -10/Exiles Mutant | -9/Mines Mutant | -8/Materials Resources | -11 -10 -10 -10 -9 -8 ----------- Run | Yrd Mat Min Exi Min Mat Matter Collected 982 | 310 282 34 . . 356 Remotely . | . . . . . . Salvage Created 1446 | 131 634 104 . . 577 Parts 80 | 10 34 9 . . 27 Haulers Intercepted 3 | . 2 . . . 1 Recyclers Shooed 1 | 1 . . . . . Parts Field Recycled . | . . . . . . Retrieved Matter . | . . . . . . Parts Self-Destructed . | . . . . . . Prevented . | . . . . . . Parts Restored . | . . . . . . Kills | -11 -10 -10 -10 -9 -8 ------- Run | Yrd Mat Min Exi Min Mat Combat Hostiles Destroyed 30 | . 13 2 . . 15 Melee 2 | . . . . . 2 Guns 19 | . 13 2 . . 4 AOE 6 | . . . . . 6 Classes Destroyed 9 | 2 4 . . . 3 Tunneler 3 | 3 . . . . . Hauler 3 | . 2 . . . 1 Recycler 2 | 1 . . . . 1 Operator 3 | . 1 . . . 2 Swarmer 7 | . 3 . . . 4 Grunt 20 | . 10 2 . . 8 Brawler 1 | . . . . . 1 Sentry 1 | . . . . . 1 Hunter 1 | . . . . . 1 Best Kill Streak 8 | 4 4 2 . . 8 Combat Bots Only 6 | . 4 2 . . 6 Max Kills in Single Turn 2 | 1 1 1 . . 2 Gunslinging . | . . . . . . Exploded 2 | . . . . . 2 Melee 1 | . . . . . 1 Uniques/NPCs Destroyed . | . . . . . . Combat | -11 -10 -10 -10 -9 -8 -------- Run | Yrd Mat Min Exi Min Mat Hostile Shots Fired 256 | . 70 12 . . 174 Missed 69 | . 19 3 . . 47 Hits 187 | . 51 9 . . 127 Melee 6 | . . . . . 6 Projectile 181 | . 51 9 . . 121 Critical Strikes 12 | . . 1 . . 11 Actively Blocked 2 | . . . . . 2 Damage Taken 2743 | . 606 126 . 2 2009 Core 684 | . 72 57 . 2 553 Absorbed by Shields . | . . . . . . Redirected to Shielding 82 | . . . . . 82 Core Remaining (%) 73 | 100 . . . 47 . Volleys Fired 147 | 10 70 7 . . 60 Largest 2 | 2 2 2 . . 2 Hottest 40 | 40 40 40 . . 40 Shots Fired 221 | 20 109 14 . . 78 Gun 209 | 20 109 14 . . 66 Cannon . | . . . . . . Launcher 12 | . . . . . 12 Special . | . . . . . . Kinetic 209 | 20 109 14 . . 66 Thermal . | . . . . . . Explosive 12 | . . . . . 12 Electromagnetic . | . . . . . . Robot Hit Streak 15 | 4 15 7 . . 9 Robot Miss Streak 4 | 2 2 1 . . 4 Penetration Max . | . . . . . . Secondary Targets 3 | . 1 . . . 2 Max Gunslinging Chain 1 | . 1 . . . 1 Shots Hit Robots 161 | 10 81 10 . . 60 Core Hits 82 | 5 33 8 . 1 35 Critical Kills 1 | . . . . . 1 Critical Parts Destroyed 5 | . . . . . 5 Critical Strikes 6 | . . . . . 6 Smash 6 | . . . . . 6 Melee Attacks 18 | . . . . . 18 Impact 18 | . . . . . 18 Slashing . | . . . . . . Piercing . | . . . . . . Sneak Attacks 2 | . . . . . 2 Combat Hostiles . | . . . . . . Follow-up Attacks . | . . . . . . Damage Inflicted 2744 | 111 826 76 . 4 1727 Guns 1360 | 111 816 76 . . 357 Cannons . | . . . . . . Explosions 712 | . . . . . 712 Melee 658 | . . . . . 658 Ramming 14 | . 10 . . 4 . Kinetic 1360 | 111 816 76 . . 357 Thermal . | . . . . . . Explosive 712 | . . . . . 712 Electromagnetic . | . . . . . . Impact 658 | . . . . . 658 Slashing . | . . . . . . Piercing . | . . . . . . Highest Corruption 8 | . . . . . 8 Average Corruption 8 | . . . . . 8 Corruption Purged . | . . . . . . Corruption Blocked . | . . . . . . Effects 15 | . . . . . 15 Message Errors 1 | . . . . . 1 Matter Fused 6 | . . . . . 6 Heat Flow Errors 1 | . . . . . 1 Energy Discharges 2 | . . . . . 2 Parts Rejected 1 | . . . . . 1 Data Loss (minor) 2 | . . . . . 2 Data Loss (major) 2 | . . . . . 2 Overload Shots . | . . . . . . Overflow Damage 184 | . . . . . 184 Projectiles . | . . . . . . Explosions 1 | . . . . . 1 Melee 183 | . . . . . 183 Knockbacks 5 | . . . . . 5 Impact 5 | . . . . . 5 Kinetic . | . . . . . . Secondary . | . . . . . . Self-Inflicted Damage 75 | . 5 . . 2 68 Shots 2 | . . . . . 2 Rammed 3 | . 2 . . 1 . Targets Rammed 3 | . 2 . . 1 . Kicked . | . . . . . . Crushed . | . . . . . . Highest Temperature 104 | . 18 43 . . 104 Average Temperature 14 | . 7 26 . . 27 Received Heat Transfer 1248 | . 306 96 . . 846 Siege Activations . | . . . . . . Martial Activations . | . . . . . . Shielding Activations . | . . . . . . Robots Disrupted . | . . . . . . Combat Hostiles . | . . . . . . Robots Corrupted 3 | . . . . . 3 Combat Hostiles 3 | . . . . . 3 Parts Fried 1 | . . . . . 1 Impact Corruptions 5 | . . . . . 5 Robots Melted . | . . . . . . Combat Hostiles . | . . . . . . Parts Melted . | . . . . . . Heat Transferred . | . . . . . . Parts Sabotaged . | . . . . . . Parts Stolen . | . . . . . . Parts Stripped . | . . . . . . Power Chain Reactions . | . . . . . . Alert | -11 -10 -10 -10 -9 -8 ------- Run | Yrd Mat Min Exi Min Mat Maximum Alert Level 1 | . . . . . 1 Low Security (%) 91 | 100 100 100 . 100 65 Level 1 8 | . . . . . 34 Level 2 . | . . . . . . Level 3 . | . . . . . . Level 4 . | . . . . . . Level 5 . | . . . . . . High Security . | . . . . . . Max Security . | . . . . . . Peak Influence 264 | 10 104 40 . . 264 Initial . | . . . . . . Average 38 | . 26 28 . . 93 Influence Increases 984 | 20 373 50 . . 541 Destroy 0b10 Robot/C 600 | . 260 40 . . 300 Destroy 0b10 Robot/NC 55 | 20 15 . . . 20 Destroy Leader 126 | . 64 10 . . 52 Successful Hack 34 | . 34 . . . . Disable Machine 60 | . . . . . 60 Destroy Structure 49 | . . . . . 49 Lose Combat Pursuer 60 | . . . . . 60 Influence Decreases 747 | 20 373 20 30 . 304 Entered New Map 30 | . . . 30 . . Time Decay 517 | 20 343 20 . . 134 Lost Part 200 | . 30 . . . 170 Squads Dispatched 7 | . 5 . . . 2 Investigation 4 | . 4 . . . . Extermination . | . . . . . . Reinforcement 3 | . 1 . . . 2 Assault . | . . . . . . Garrison . | . . . . . . Intercept . | . . . . . . Searches Triggered . | . . . . . . Construction Impeded . | . . . . . . Haulers Reinforced . | . . . . . . Active Scanning Responses . | . . . . . . Cargo Convoy Interrupts . | . . . . . . Stealth | -11 -10 -10 -10 -9 -8 --------- Run | Yrd Mat Min Exi Min Mat Distress Signals 7 | . 3 . . . 4 Communications Jammed . | . . . . . . Distress Signals . | . . . . . . Times Spotted 45 | . 17 2 . . 26 Peak Tracking Total 6 | . 4 2 . . 6 Tactical Retreats 4 | . . . . . 4 Traps | -11 -10 -10 -10 -9 -8 ------- Run | Yrd Mat Min Exi Min Mat Traps Triggered 2 | . 2 . . . . Indirectly . | . . . . . . Trap Hack Attempts . | . . . . . . Triggered . | . . . . . . Disarmed . | . . . . . . Reprogrammed . | . . . . . . Reused . | . . . . . . Traps Extracted . | . . . . . . Installed . | . . . . . . Triggered . | . . . . . . Machines | -11 -10 -10 -10 -9 -8 ---------- Run | Yrd Mat Min Exi Min Mat Machines Disabled 4 | . . . . . 4 Max in Single Turn 2 | . . . . . 2 Garrison Access 1 | . . . . . 1 Machines Repaired . | . . . . . . Machines Dismantled . | . . . . . . Machines Sabotaged . | . . . . . . Overloaded Fab Kills . | . . . . . . Hacking | -11 -10 -10 -10 -9 -8 --------- Run | Yrd Mat Min Exi Min Mat Machines Accessed 12 | . 8 . 2 . 2 Terminals 7 | . 7 . . . . Fabricators . | . . . . . . Repair Stations . | . . . . . . Recycling Units 1 | . 1 . . . . Scanalyzers 1 | . . . . . 1 Garrison Access 1 | . . . . . 1 Total Hacks 25 | . 20 . 2 . 3 Successful 14 | . 9 . 2 . 3 Failed 11 | . 11 . . . . Catastrophic 2 | . 2 . . . . Database Lockouts . | . . . . . . Manual 14 | . 13 . 1 . . Terminals 19 | . 19 . . . . Fabricators . | . . . . . . Repair Stations . | . . . . . . Recycling Units 1 | . 1 . . . . Scanalyzers 2 | . . . . . 2 Garrison Access 1 | . . . . . 1 Terminal Hacks 9 | . 7 . 2 . . Record 2 | . 1 . 1 . . Robot Analysis 2 | . 2 . . . . Prototype ID Bank 1 | . 1 . . . . Hauler Manifests 1 | . 1 . . . . Registered Components 1 | . 1 . . . . Zone Layout 1 | . 1 . . . . Proto ID Catalog 1 | . . . 1 . . Fabricator Hacks . | . . . . . . Repair Station Hacks . | . . . . . . Recycling Unit Hacks 1 | . 1 . . . . Retrieve Components 1 | . 1 . . . . Scanalyzer 2 | . . . . . 2 Insert Component 1 | . . . . . 1 Analyze 1 | . . . . . 1 Garrison Access Hacks 1 | . . . . . 1 Seal Access 1 | . . . . . 1 Unauthorized Hacks 1 | . 1 . . . . Terminals 1 | . 1 . . . . Operators 1 | . 1 . . . . Fabricators . | . . . . . . Repair Stations . | . . . . . . Recycling Units . | . . . . . . Scanalyzers . | . . . . . . Garrison Access . | . . . . . . Data Cores Recovered . | . . . . . . Used . | . . . . . . Hacking Detections 8 | . 7 . . . 1 Full Trace Events 1 | . 1 . . . . Feedback Events . | . . . . . . Feedback Blocked . | . . . . . . Robot Schematics Acquired . | . . . . . . Robots Built . | . . . . . . Authchips . | . . . . . . Time . | . . . . . . Total Robot Build Rating . | . . . . . . Part Schematics Acquired . | . . . . . . Parts Built . | . . . . . . Authchips . | . . . . . . Time . | . . . . . . Total Part Build Rating . | . . . . . . Part Studies Acquired . | . . . . . . Parts Repaired . | . . . . . . Time . | . . . . . . Parts Recycled . | . . . . . . Recycled Matter . | . . . . . . Retrieved Matter . | . . . . . . Retrieved Components 9 | . 9 . . . . Parts Scanalyzed 1 | . . . . . 1 Part Schematics Acquired . | . . . . . . Parts Damaged . | . . . . . . Bothacking | -11 -10 -10 -10 -9 -8 ------------ Run | Yrd Mat Min Exi Min Mat Used RIF Installer . | . . . . . . Robots Hacked . | . . . . . . Non-combat . | . . . . . . Combat . | . . . . . . Robot Hacks Applied . | . . . . . . Relay Couplers Released . | . . . . . . Fabnet Peak Effective % . | . . . . . . Robots Rewired . | . . . . . . Allies Hacked . | . . . . . . Hacks Repelled . | . . . . . . Allies | -11 -10 -10 -10 -9 -8 -------- Run | Yrd Mat Min Exi Min Mat Total Allies . | . . . . . . Largest Group . | . . . . . . Highest-Rated Group . | . . . . . . Highest-Rated Ally . | . . . . . . Total Orders . | . . . . . . Ally Attacks . | . . . . . . Total Damage . | . . . . . . Kills . | . . . . . . Allies Corrupted . | . . . . . . Allies Melted . | . . . . . . Intel | -11 -10 -10 -10 -9 -8 ------- Run | Yrd Mat Min Exi Min Mat Active Infowar (turns) 2414 | 39 1474 56 242 172 431 Sensors 81 | . . . . . 81 Structural 431 | . . . . . 431 Seismic 2066 | 39 1474 56 242 172 83 Robot Analysis Total 2 | . 2 . . . . Derelict Logs Recovered . | . . . . . . Drone Launches . | . . . . . . Drone Recoveries . | . . . . . . Exploration | -11 -10 -10 -10 -9 -8 ------------- Run | Yrd Mat Min Exi Min Mat Turns Passed 2653 | 157 1474 56 242 172 552 Spaces Moved 1536 | 75 898 32 219 114 198 Core 12 | 7 . . . . 5 Treads 603 | 68 464 . . . 71 Legs 121 | . 5 . . . 116 Wheels 800 | . 429 32 219 114 6 Hover . | . . . . . . Flight . | . . . . . . Fastest Speed 50 | 50 110 110 110 110 105 Average Speed 135 | 149 137 110 110 110 169 Slowest Speed 400 | 160 260 110 110 110 400 Overloaded Moves . | . . . . . . Propulsion Burnouts . | . . . . . . Robots Hopped . | . . . . . . Potential Cave-ins . | . . . . . . Cave-ins Triggered . | . . . . . . Exploration Rate (%) 36 | 5 96 8 62 29 19 Regions Visited 5 Branch Regions 3 Pre-discovered Areas 1 | . . . 1 . . Known Exits Taken . | . . . . . . Unknown Exits Taken 5 | 1 1 1 1 1 . Scrap Searched . | . . . . . . Spaces Dug . | . . . . . . Terrain Destroyed 60 | . . . . . 60 Melee . | . . . . . . Projectile . | . . . . . . AOE 60 | . . . . . 60 Terrain Rammed . | . . . . . . Walls Destroyed . | . . . . . . Machines Disabled . | . . . . . . Actions | -11 -10 -10 -10 -9 -8 --------- Run | Yrd Mat Min Exi Min Mat Total 1879 | 99 1041 41 220 161 317 Wait 103 | . 50 . . 45 8 Move 1531 | 74 897 31 218 113 198 Hop . | . . . . . . Pick Up 28 | 8 7 1 1 1 10 Fast Attach 16 | 6 3 . . . 7 Attach 12 | 1 . 1 . . 10 Detach . | . . . . . . Swap 12 | . 8 1 . . 3 Drop 9 | . 4 . 1 1 3 Fire 147 | 10 70 7 . . 60 Melee 18 | . . . . . 18 Ram 3 | . 2 . . 1 . Kick . | . . . . . . Crush . | . . . . . . Escape Stasis . | . . . . . . Rewire . | . . . . . . Trap . | . . . . . . Miscellaneous . | . . . . . . Route ------- -11/Scrapyard -10/Materials (discovered 6 exits: [*Mat x3] / [*Min x2] / [*Sub]) -10/Mines -10/Exiles -9/Mines -8/Materials History --------- Turn | Location | Event 6 | -11/Scrapyard | Discovered new exit (range 15) 158 | -11/Scrapyard | Entered Materials 159 | -10/Materials | Met a group of wandering Federalists 318 | -10/Materials | Build established: Mutant 363 | -10/Materials | Discovered new exit (range 16) 586 | -10/Materials | Discovered new exit (range 8) 720 | -10/Materials | Discovered new exit (range 6) 898 | -10/Materials | Discovered new exit (range 17) 898 | -10/Materials | Discovered new exit (range 21) 942 | -10/Materials | Discovered new exit (range 12) 1088 | -10/Materials | Lost 3 parts (1p1n1w) 1632 | -10/Materials | Entered Mines 1651 | -10/Mines | Core integrity fell below 50% 1681 | -10/Mines | Met a Derelict bent on vengeance 1683 | -10/Mines | Deemed a non-threat by the Exiles lab entrance 1684 | -10/Mines | Discovered new exit (range 5) 1688 | -10/Mines | Entered Exiles 1715 | -10/Exiles | Met 8R-AWN 1734 | -10/Exiles | Met EX-HEX 1764 | -10/Exiles | Met EX-BIN 1778 | -10/Exiles | Aligned with FarCom system 1779 | -10/Exiles | Given EX-Vault access code 1809 | -10/Exiles | Opened EX-Vault 1816 | -10/Exiles | Found Cloak of Protection 1837 | -10/Exiles | Warned to stay clear of 0b10 Research branches 1870 | -10/Exiles | Met EX-DEC 1880 | -10/Exiles | Learned location of Zion (-6) 1918 | -10/Exiles | Discovered new exit (range 14) 1930 | -10/Exiles | Left Exiles lab with Cloak of Protection 1930 | -10/Exiles | Entered Mines 1997 | -9/Mines | Found a damaged Exp. Sensor Array with a note attached 2000 | -9/Mines | Found Prototype Device 2091 | -9/Mines | Discovered new exit (range 9) 2102 | -9/Mines | Entered Materials 2102 | -8/Materials | Evolved 4 slots: Propulsion x1, Utility x3 2277 | -8/Materials | Lost 7 parts (1p2n3u1w) 2375 | -8/Materials | Identified Exp. Sensor Array 2561 | -8/Materials | Core integrity fell below 50% 2643 | -8/Materials | Core integrity fell below 20% 2645 | -8/Materials | Lost 11 parts (2p4n4u1w) 2654 | -8/Materials | Destroyed by Y-45 Defender with Heavy Assault Rifle Last Messages --------------- 02638_ K-01 Serf collects debris. 02638_ U-05 Engineer lays Concrete. 02641_ K-01 Serf collects debris. 02641_ U-05 Engineer lays Concrete. 02644_ K-01 Serf collects debris. 02645_ Lgt. Assault Rifle destroyed. 02645_ U-05 Engineer lays Concrete. 02646_ Y-45 Defender suffers critical hit (Smash). 02646_ Destroyed Lgt. Treads. 02646_ Y-45 Defender system corrupted by crushing effect. 02647_ Y-45 Defender system terminally corrupted. 02647_ K-01 Serf collects debris. 02649_ Acquired 53 matter. 02651_ K-01 Serf collects debris. 02652_ U-05 Engineer builds a Wall. 02653_ R-06 Scavenger collects Corrupted Carbon-fiber Leg. Map ----- +----------------------------------------------------+ | % ### # ??????????????????????????????????? | | % ### # "T" ##???????????????????????????? | | #### ########## ####???????????? | | #### ##### ######+#+#########???????????? | | #### # # # # + ???????????? | | #### # ##?????????????? | | ######### # # # ##?????????????? | | # !# # ##?????????????? | | # """ # # / # ##?????????????? | | ??""""" + + # # ##?????????????? | | ??""""" # # " [ # ##?????????????? | | ??""""" # ## ## ######% ##?????????????? | | ?? """ # ########### # # ##?????????????? | | ? # #############u ####### ????????? | | ?######## ##?????###### ####### ????????? | | ?######## ##????###!! ???????? | | ?????? ##????###!! ???????? | | ??????####+###????## // " ???????? | | ?????? ????## // T #### ????????? | | ??????????????????## ! ""## ?????????? | | ??????????????????## !! ""##??????????? | | ??????????????????### T"##??????????? | | ??????????????????### # ""##??????????? | | ???????????????????#### ""##??????????? | | ???????????????????####% = % #############?? | | ??????????###????????##""@Y" ### / #?? | | ?????????## ######### k" ;## #?? | | ??????? ! ! r # #?? | | ??????? ! r%""" ""????? | | ??????? * #=""" ""????? | | ??????????# #################+#### """ ""????? | | ??????????###??????########## ### ??? | | ?????????????????????????????????????# ??? | | ?????????????????????????????????????#########???? | | ?????????????????????????????????????????????????? | | ?????????????????????????????????????????????????? | | ?????????????????????????????????????????????????? | | ?????????????????????????????????????????????????? | | ?????????????????????????????????????????????????? | | ?????????????????w???????????????????????????????? | | ?????????????????????????????????????????????????? | | ?????????????????????????????????????????????????? | | ?????????????????????????????????????????????????? | | ?????????????????????????????????????????????????? | | ?????????????????????????????????????????????????? | | ?????????????????????????????????????????????????? | | ?????????????????????????????????????????????????? | | ?????????????????????????????????????????????????? | | ?????????????????????????????????????????????????? | | ?????????????????????????????????????????????????? | +----------------------------------------------------+ Best States ------------- Heat Dissipation 45 Energy Generation 14 Energy Capacity 250 Matter Stores 300 Matter Capacity 300 Sight Range 16 Robot Scan Range 20 Terrain Scan Density 10 Propulsion Shielding 33 Evasion (%) 55 Recoil Reduction 2 Offensive Hacking 10 Item Schematics ----------------- None Robot Schematics ------------------ None Fabricated ------------ Nothing Repaired ---------- Nothing Studied --------- None Alien Tech Used ----------------- None Achievements -------------- None Challenges ------------ None Game ------ Seed SalvageAntimatterNullifier Manual? 0 Play Time 00:23:34 Cumulative 49.4 hours Start 2026.04.18 @ 18:08:18 End 2026.04.18 @ 18:30:37 Sessions 1 Manual Loads 0 Difficulty Rogue Special Mode None Game No. 61 Rogue 61 Adventurer 0 Explorer 0 Win Type - Total 0 Types 0/0/0/0/0/0/0/0/0/0 Lore% 25 Gallery% 34 Achievement% 27 Wizard Run 0 Options --------- Layout 2 ASCII 0 Keyboard 0 Movement Numpad Keybinds 1 Fullscreen 1 Font 24/Smallcaps Map View 50x44 Zoom Use 0% Tactical HUD 1 Map Filters NONE Filters NONE Steam 1 RUN: 7c2cc39a-ba06-4f1e-bfbc-173504933f26